fUSD/lending_fUSD_20250616
["ID","MTS","AMOUNT","RATE_DAILY","PERIOD"]
[366190661,1750105832982,-490.0,0.00015661,2]
[366190662,1750105832992,-662.63,0.00015661,2]
[366190663,1750105833002,-967.04,0.00015661,2]
[366190664,1750105833013,-490.0,0.00015661,2]
[366190665,1750105833023,-490.0,0.00015661,2]
[366190666,1750105833033,-532.89,0.00015661,2]
[366190667,1750105833043,-490.0,0.00015661,2]
[366190668,1750105833054,-490.0,0.00015661,2]
[366190669,1750105833065,-647.82,0.00015661,2]
[366190670,1750105833076,-490.0,0.00015661,2]
[366190671,1750105833086,-2324.41,0.00015661,2]
[366190672,1750105833096,-927.04,0.00015661,2]
[366190673,1750105833107,-490.0,0.00015661,2]
[366190674,1750105833117,-490.0,0.00015661,2]
[366190675,1750105833128,-1026.3,0.00015661,2]
[366190676,1750105833138,-500.75,0.00015661,2]
[366190677,1750105833148,-490.0,0.00015661,2]
[366190678,1750105833159,-490.0,0.00015661,2]
[366190679,1750105833169,-490.0,0.00015661,2]
[366190680,1750105833179,-847.43,0.00015661,2]
[366190681,1750105833189,-1071.14,0.00015661,2]
[366190682,1750105833200,-1681.57,0.00015661,2]
[366190683,1750105833210,-490.0,0.00015661,2]
[366190684,1750105833220,-490.0,0.00015661,2]
[366190685,1750105833230,-2577.05,0.00015661,2]
[366190686,1750105833240,-490.0,0.00015661,2]
[366190687,1750105833251,-1949.94,0.00015661,2]
[366190688,1750105833261,-490.0,0.00015661,2]
[366190689,1750105833271,-490.0,0.00015661,2]
[366190690,1750105833283,-490.0,0.00015661,2]
[366190691,1750105833296,-490.0,0.00015661,2]
[366190692,1750105833306,-650.43,0.00015661,2]
[366190693,1750105833316,-180.94,0.00015661,2]
[366190694,1750105833327,-490.0,0.00015661,2]
[366190695,1750105833337,-916.18,0.00015661,2]
[366190696,1750105833347,-490.0,0.00015661,2]
[366190697,1750105833357,-490.0,0.00015661,2]
[366190698,1750105833367,-498.56,0.00015661,2]
[366190699,1750105833382,-490.0,0.00015661,2]
[366190700,1750105833392,-656.22,0.00015661,2]
[366190701,1750105833402,-490.0,0.00015661,2]
[366190702,1750105833412,-490.0,0.00015661,2]
[366190703,1750105833422,-2498.33,0.00015661,2]
[366190704,1750105833432,-1637.68,0.00015661,2]
[366190705,1750105833442,-490.0,0.00015661,2]
[366190706,1750105833454,-490.0,0.00015661,2]
[366190707,1750105833464,-490.0,0.00015661,2]
[366190708,1750105833475,-1004.86,0.00015661,2]
[366190709,1750105833486,-490.0,0.00015661,2]
[366190710,1750105833497,-896.18,0.00015661,2]
[366190711,1750105833507,-1707.89,0.00015661,2]
[366190712,1750105833518,-490.0,0.00015661,2]
[366190713,1750105833529,-490.0,0.00015661,2]
[366190714,1750105833539,-490.0,0.00015661,2]
[366190715,1750105833550,-490.0,0.00015661,2]
[366190716,1750105833561,-5170.04,0.00015661,2]
[366190717,1750105833572,-490.0,0.00015661,2]
[366190718,1750105833582,-1000.0,0.00015661,2]
[366190719,1750105833592,-2023.03,0.00015661,2]
[366190720,1750105833602,-490.0,0.00015661,2]
[366190721,1750105833612,-1345.89,0.00015661,2]
[366190722,1750105833623,-1896.42,0.00015661,2]
[366190723,1750105833634,-490.0,0.00015661,2]
[366190724,1750105833645,-490.0,0.00015661,2]
[366190725,1750105833656,-490.0,0.00015661,2]
[366190726,1750105833666,-490.0,0.00015661,2]
[366190727,1750105833676,-490.0,0.00015661,2]
[366190728,1750105833686,-490.0,0.00015661,2]
[366190729,1750105833696,-490.0,0.00015661,2]
[366190730,1750105833707,-490.0,0.00015661,2]
[366190731,1750105833717,-867.26,0.00015661,2]
[366190732,1750105833728,-1428.48,0.00015661,2]
[366190733,1750105833738,-490.0,0.00015661,2]
[366190734,1750105833748,-490.0,0.00015661,2]
[366190735,1750105833758,-490.0,0.00015661,2]
[366190736,1750105833768,-1191.08,0.00015661,2]
[366190737,1750105833779,-490.0,0.00015661,2]
[366190738,1750105833789,-1040.99,0.00015661,2]
[366190739,1750105833799,-490.0,0.00015661,2]
[366190740,1750105833809,-490.0,0.00015661,2]
[366190741,1750105833819,-3648.12,0.00015661,2]
[366190742,1750105833829,-490.0,0.00015661,2]
[366190743,1750105833839,-490.0,0.00015661,2]
[366190744,1750105833849,-5303.75,0.00015661,2]
[366190745,1750105833860,-490.0,0.00015661,2]
[366190746,1750105833869,-490.0,0.00015661,2]
[366190747,1750105833879,-490.0,0.00015661,2]
[366190748,1750105833890,-915.14,0.00015661,2]
[366190749,1750105833900,-490.0,0.00015661,2]
[366190750,1750105833910,-490.0,0.00015661,2]
[366190751,1750105833921,-490.0,0.00015661,2]
[366190752,1750105833931,-664.87,0.00015661,2]
[366190753,1750105833941,-490.0,0.00015661,2]
[366190754,1750105833951,-585.86,0.00015661,2]
[366190755,1750105833962,-490.0,0.00015661,2]
[366190756,1750105833972,-490.0,0.00015661,2]
[366190757,1750105833982,-490.0,0.00015661,2]
[366190758,1750105833992,-607.36,0.00015661,2]
[366190759,1750105834002,-166.132104,0.00015661,2]
[366190760,1750105834012,-490.0,0.00015661,2]
[366190761,1750105834022,-490.0,0.00015661,2]
[366190762,1750105834032,-490.0,0.00015661,2]
[366190763,1750105834042,-508.54,0.00015661,2]
[366190764,1750105834052,-536.93,0.00015661,2]
[366190765,1750105834062,-1261.66,0.00015661,2]
[366190766,1750105834072,-490.0,0.00015661,2]
[366190767,1750105834081,-1460.76,0.00015661,2]
[366190768,1750105834091,-525.02,0.00015661,2]
[366190769,1750105834101,-490.0,0.00015661,2]
[366190770,1750105834111,-540.26,0.00015661,2]
[366190771,1750105834594,-490.0,0.00015661,2]
[366190772,1750105834605,-490.0,0.00015661,2]
[366190773,1750105834614,-728.48,0.00015661,2]
[366190774,1750105834624,-666.67,0.00015661,2]
[366190775,1750105834633,-1776.92,0.00015661,2]
[366190776,1750105834643,-799.21,0.00015661,2]
[366190777,1750105834653,-1018.65,0.00015661,2]
[366190778,1750105834663,-490.0,0.00015661,2]
[366190779,1750105834672,-262.89200821,0.00015661,2]
[366190780,1750105834682,-490.0,0.00015661,2]
[366190781,1750105834691,-599.37,0.00015661,2]
[366190782,1750105834701,-678.48,0.00015661,2]
[366190783,1750105834711,-490.0,0.00015661,2]
[366190784,1750105834720,-490.0,0.00015661,2]
[366190785,1750105834730,-490.46724023,0.00015661,2]
[366190786,1750105834739,-1008.651932,0.00015661,2]
[366190787,1750105834749,-490.0,0.00015661,2]
[366190788,1750105834759,-2126.42,0.00015661,2]
[366190789,1750105834768,-543.38,0.00015661,2]
[366190790,1750105834778,-159.983057,0.00015661,2]
[366190791,1750105834787,-490.0,0.00015661,2]
[366190792,1750105834797,-490.0,0.00015661,2]
[366190793,1750105834806,-490.0,0.00015661,2]
[366190794,1750105834816,-490.0,0.00015661,2]
[366190795,1750105834826,-490.0,0.00015661,2]
[366190796,1750105834835,-1145.41,0.00015661,2]
[366190797,1750105834844,-546.78,0.00015661,2]
[366190798,1750105834854,-490.0,0.00015661,2]
[366190799,1750105834864,-490.0,0.00015662,2]
[366190800,1750105834874,-490.0,0.00015662,2]
[366190801,1750105834884,-490.0,0.00015662,2]
[366190802,1750105834893,-490.0,0.00015662,2]
[366190803,1750105834902,-490.0,0.00015662,2]
[366190804,1750105834912,-490.0,0.00015662,2]
[366190805,1750105834922,-490.0,0.00015662,2]
[366190806,1750105834932,-490.0,0.00015662,2]
[366190807,1750105834942,-167.55975517,0.00015662,2]
[366190808,1750105834952,-490.0,0.00015662,2]
[366190809,1750105834962,-490.0,0.00015662,2]
[366190810,1750105834972,-490.0,0.00015662,2]
[366190811,1750105834982,-490.0,0.00015662,2]
[366190812,1750105834991,-490.0,0.00015662,2]
[366190813,1750105835001,-490.0,0.00015662,2]
[366190814,1750105835011,-490.0,0.00015662,2]
[366190815,1750105835020,-490.0,0.00015662,2]
[366190816,1750105835030,-490.0,0.00015662,2]
[366190817,1750105835042,-490.0,0.00015662,2]
[366190818,1750105835051,-490.0,0.00015662,2]
[366190819,1750105835061,-490.0,0.00015662,2]
[366190820,1750105835071,-490.0,0.00015662,2]
[366190821,1750105835081,-490.0,0.00015662,2]
[366190822,1750105835090,-490.0,0.00015662,2]
[366190823,1750105835100,-447.07137826,0.00015662,2]
[366190824,1750105835109,-490.0,0.00015662,2]
[366190825,1750105835119,-490.0,0.00015662,2]
[366190826,1750105835129,-490.0,0.00015662,2]
[366190827,1750105835138,-490.0,0.00015662,2]
[366190828,1750105835148,-204.67899844,0.00015662,2]
[366190829,1750105835158,-498.97291126,0.00015662,2]
[366190830,1750105835167,-490.0,0.00015662,2]
[366190831,1750105835176,-490.0,0.00015662,2]
[366190832,1750105835185,-490.0,0.00015662,2]
[366190833,1750105835195,-490.0,0.00015662,2]
[366190834,1750105835205,-490.0,0.00015662,2]
[366190835,1750105835215,-490.0,0.00015662,2]
[366190836,1750105835225,-490.0,0.00015662,2]
[366190837,1750105835235,-490.0,0.00015662,2]
[366190838,1750105835246,-490.0,0.00015662,2]
[366190839,1750105835256,-490.0,0.00015662,2]
[366190840,1750105835265,-490.0,0.00015662,2]
[366190841,1750105835275,-490.0,0.00015662,2]
[366190842,1750105835285,-490.0,0.00015662,2]
[366190843,1750105835296,-490.0,0.00015662,2]
[366190844,1750105835308,-490.0,0.00015662,2]
[366190845,1750105835319,-490.0,0.00015662,2]
[366190846,1750105835329,-229.39736527,0.00015662,2]
[366190847,1750105835339,-490.0,0.00015662,2]
[366190848,1750105835349,-490.0,0.00015662,2]
[366190849,1750105835359,-676.46,0.00015662,2]
[366190850,1750105835370,-490.0,0.00015662,2]
[366190851,1750105835380,-518.38,0.00015662,2]
[366190852,1750105835390,-490.0,0.00015662,2]
[366190853,1750105835400,-490.0,0.00015662,2]
[366190854,1750105835410,-490.0,0.00015662,2]
[366190855,1750105835419,-490.0,0.00015662,2]
[366190856,1750105835430,-490.0,0.00015662,2]
[366190857,1750105835439,-552.93,0.00015662,2]
[366190858,1750105835448,-490.0,0.00015662,2]
[366190859,1750105835458,-490.0,0.00015662,2]
[366190860,1750105835467,-490.0,0.00015662,2]
[366190861,1750105835477,-490.0,0.00015662,2]
[366190862,1750105835486,-490.0,0.00015662,2]
[366190863,1750105835496,-490.0,0.00015662,2]
[366190864,1750105835506,-490.0,0.00015662,2]
[366190865,1750105835516,-541.25,0.00015662,2]
[366190866,1750105835525,-490.0,0.00015662,2]
[366190867,1750105835537,-490.0,0.00015662,2]
[366190868,1750105835547,-552.78,0.00015662,2]
[366190869,1750105835558,-490.0,0.00015662,2]
[366190870,1750105835570,-490.0,0.00015662,2]
[366190871,1750105835581,-490.0,0.00015662,2]
[366190872,1750105835595,-550.94,0.00015662,2]
[366190873,1750105835606,-490.0,0.00015662,2]
[366190874,1750105835616,-495.95,0.00015662,2]
[366190875,1750105835629,-490.0,0.00015662,2]
[366190876,1750105835638,-518.62,0.00015662,2]
[366190877,1750105835648,-490.0,0.00015662,2]
[366190878,1750105835657,-490.0,0.00015662,2]
[366190879,1750105835667,-490.0,0.00015662,2]
[366190880,1750105835676,-490.0,0.00015662,2]
[366190881,1750105835686,-751.14,0.00015662,2]
[366190882,1750105835696,-490.0,0.00015662,2]
[366190883,1750105835706,-490.0,0.00015662,2]
[366190884,1750105835716,-490.0,0.00015662,2]
[366190885,1750105835725,-490.0,0.00015662,2]
[366190886,1750105835735,-490.0,0.00015662,2]
[366190887,1750105835745,-490.0,0.00015662,2]
[366190888,1750105835754,-490.0,0.00015662,2]
[366190889,1750105835763,-490.0,0.00015662,2]
[366190890,1750105835772,-490.0,0.00015662,2]
[366190891,1750105835782,-490.0,0.00015662,2]
[366190892,1750105835792,-490.0,0.00015662,2]
[366190893,1750105835802,-490.0,0.00015662,2]
[366190894,1750105835811,-490.0,0.00015662,2]
[366190895,1750105835821,-522.14,0.00015662,2]
[366190896,1750105835831,-490.0,0.00015662,2]
[366190897,1750105835840,-490.0,0.00015662,2]
[366190898,1750105835850,-512.01787688,0.00015662,2]
[366190899,1750105835859,-490.0,0.00015662,2]
[366190900,1750105835869,-490.0,0.00015662,2]
[366190901,1750105835879,-162.8741359,0.00015662,2]
[366190902,1750105835888,-490.0,0.00015662,2]
[366190903,1750105835898,-490.0,0.00015662,2]
[366190904,1750105835907,-490.0,0.00015662,2]
[366190905,1750105835917,-537.92,0.00015662,2]
[366190906,1750105835927,-490.0,0.00015662,2]
[366190907,1750105835936,-559.99,0.00015662,2]
[366190908,1750105835946,-571.48,0.00015662,2]
[366190909,1750105835956,-490.0,0.00015662,2]
[366190910,1750105835966,-490.0,0.00015662,2]
[366190911,1750105835976,-490.0,0.00015662,2]
[366190912,1750105835985,-490.0,0.00015662,2]
[366190913,1750105835995,-496.57,0.00015662,2]
[366190914,1750105836006,-507.91889742,0.00015662,2]
[366190915,1750105836015,-490.0,0.00015662,2]
[366190916,1750105836025,-554.99,0.00015662,2]
[366190917,1750105836035,-490.0,0.00015662,2]
[366190918,1750105836044,-490.0,0.00015662,2]
[366190919,1750105836054,-490.0,0.00015662,2]
[366190920,1750105836064,-490.0,0.00015662,2]
[366190921,1750105836073,-490.0,0.00015662,2]
[366190922,1750105836083,-344.38806262,0.00015662,2]
[366190923,1750105836093,-490.0,0.00015662,2]
[366190924,1750105836103,-490.0,0.00015662,2]
[366190925,1750105836112,-490.0,0.00015662,2]
[366190926,1750105836122,-490.0,0.00015662,2]
[366190927,1750105836131,-490.0,0.00015662,2]
[366190928,1750105836141,-490.0,0.00015662,2]
[366190929,1750105836151,-490.0,0.00015662,2]
[366190930,1750105836160,-280.21987637,0.00015662,2]
[366190931,1750105836170,-490.0,0.00015662,2]
[366190932,1750105836180,-490.0,0.00015662,2]
[366190933,1750105836189,-490.0,0.00015662,2]
[366190934,1750105836200,-6196.55,0.00015662,2]
[366190935,1750105836209,-490.0,0.00015662,2]
[366190936,1750105836219,-747.11,0.00015662,2]
[366190937,1750105836229,-490.0,0.00015662,2]
[366190938,1750105836238,-490.0,0.00015662,2]
[366190939,1750105836248,-490.0,0.00015662,2]
[366190940,1750105836257,-537.49,0.00015662,2]
[366190941,1750105836267,-378.60504396,0.00015662,2]
[366190942,1750105836276,-821.82,0.00015662,2]
[366190943,1750105836289,-490.0,0.00015662,2]
[366190944,1750105836307,-490.0,0.00015662,2]
[366190945,1750105836317,-490.0,0.00015662,2]
[366190946,1750105836326,-613.99,0.00015662,2]
[366190947,1750105836336,-490.0,0.00015662,2]
[366190948,1750105836345,-490.0,0.00015662,2]
[366190949,1750105836355,-626.78,0.00015662,2]
[366190950,1750105836364,-490.0,0.00015662,2]
[366190951,1750105836374,-490.0,0.00015662,2]
[366190952,1750105836385,-490.0,0.00015662,2]
[366190953,1750105836394,-1038.14,0.00015662,2]
[366190954,1750105836403,-490.0,0.00015662,2]
[366190955,1750105836413,-556.53,0.00015662,2]
[366190956,1750105836423,-490.0,0.00015662,2]
[366190957,1750105836432,-490.0,0.00015662,2]
[366190958,1750105836442,-490.0,0.00015662,2]
[366190959,1750105836452,-490.0,0.00015662,2]
[366190960,1750105836462,-490.0,0.00015662,2]
[366190961,1750105836472,-490.0,0.00015662,2]
[366190962,1750105836481,-490.0,0.00015662,2]
[366190963,1750105836492,-490.0,0.00015662,2]
[366190964,1750105836501,-2030.296672,0.00015708,2]
[366190965,1750105836511,-1329.90219096,0.00015718,2]
[366190966,1750105836521,-176.37306757,0.00015726,2]
[366190967,1750105836531,-1000.0,0.00015727,2]
[366190968,1750105836540,-718.85,0.00015737,2]
[366190969,1750105836550,-2105.41764886,0.00015763,2]
[366190970,1750105836559,-168.0,0.00015786,2]
[366190971,1750105836568,-151.0,0.00015817,2]
[366190972,1750105836578,-151.0,0.00015817,2]
[366190973,1750105836587,-500.0,0.00015817,2]
[366190974,1750105836597,-500.0,0.00015817,2]
[366190975,1750105836607,-500.0,0.00015817,2]
[366190976,1750105836616,-500.0,0.00015817,2]
[366190977,1750105836626,-500.0,0.00015817,2]
[366190978,1750105836635,-500.0,0.00015817,2]
[366190979,1750105836645,-500.0,0.00015817,2]
[366190980,1750105836655,-500.0,0.00015817,2]
[366190981,1750105836664,-500.0,0.00015817,2]
[366190982,1750105836674,-500.0,0.00015817,2]
[366190983,1750105836683,-500.0,0.00015817,2]
[366190984,1750105836692,-500.0,0.00015817,2]
[366190985,1750105836701,-500.0,0.00015817,2]
[366190986,1750105836711,-500.0,0.00015817,2]
[366190987,1750105836720,-500.0,0.00015817,2]
[366190988,1750105836730,-151.0,0.00015817,2]
[366190989,1750105836739,-500.0,0.00015817,2]
[366190990,1750105836749,-500.0,0.00015817,2]
[366190991,1750105836758,-500.0,0.00015817,2]
[366190992,1750105836767,-500.0,0.00015817,2]
[366190993,1750105836777,-500.0,0.00015817,2]
[366190994,1750105836786,-500.0,0.00015817,2]
[366190995,1750105836797,-500.0,0.00015817,2]
[366190996,1750105836807,-500.0,0.00015817,2]
[366190997,1750105836816,-500.0,0.00015817,2]
[366190998,1750105836826,-500.0,0.00015817,2]
[366190999,1750105836836,-500.0,0.00015817,2]
[366191000,1750105836846,-500.0,0.00015817,2]
[366191001,1750105836856,-500.0,0.00015817,2]
[366191002,1750105836867,-500.0,0.00015817,2]
[366191003,1750105836876,-500.0,0.00015817,2]
[366191004,1750105836885,-500.0,0.00015817,2]
[366191005,1750105836895,-500.0,0.00015817,2]
[366191006,1750105836905,-500.0,0.00015817,2]
[366191007,1750105836914,-500.0,0.00015817,2]
[366191008,1750105836924,-500.0,0.00015817,2]
[366191009,1750105836933,-500.0,0.00015817,2]
[366191010,1750105836943,-500.0,0.00015817,2]
[366191011,1750105836953,-500.0,0.00015817,2]
[366191012,1750105836963,-500.0,0.00015817,2]
[366191013,1750105836974,-500.0,0.00015817,2]
[366191014,1750105836984,-500.0,0.00015817,2]
[366191015,1750105836994,-500.0,0.00015817,2]
[366191016,1750105837004,-500.0,0.00015817,2]
[366191017,1750105837013,-151.0,0.00015817,2]
[366191018,1750105837022,-367.85144471,0.00015817,2]
[366191019,1750105837032,-151.0,0.00015817,2]
[366191020,1750105837130,-151.0,0.00015817,2]
[366191021,1750105837139,-151.0,0.00015817,2]
[366191022,1750105837149,-257.46242383,0.00015817,2]
[366191023,1750105837158,-582.46778311,0.00015818,2]
[366191024,1750105837168,-490.0,0.00015825,2]
[366191025,1750105837177,-490.0,0.00015825,2]
[366191026,1750105837189,-490.0,0.00015825,2]
[366191027,1750105837197,-490.0,0.00015826,2]
[366191028,1750105837207,-490.0,0.00015826,2]
[366191029,1750105837216,-490.0,0.00015826,2]
[366191030,1750105837225,-490.0,0.00015826,2]
[366191031,1750105837235,-490.0,0.00015826,2]
[366191032,1750105837244,-490.0,0.00015826,2]
[366191033,1750105837252,-490.0,0.00015826,2]
[366191034,1750105837262,-152.49767348,0.00015826,2]
[366191035,1750105837271,-406.35148107,0.00015826,2]
[366191036,1750105837280,-490.0,0.00015826,2]
[366191038,1750105837293,-490.0,0.00015826,2]
[366191040,1750105837301,-492.84955076,0.00015826,2]
[366191041,1750105837311,-490.0,0.00015826,2]
[366191043,1750105837320,-490.0,0.00015826,2]
[366191044,1750105837329,-490.0,0.00015826,2]
[366191045,1750105837338,-596.26,0.00015826,2]
[366191046,1750105837347,-490.0,0.00015826,2]
[366191047,1750105837356,-490.0,0.00015826,2]
[366191048,1750105837365,-490.0,0.00015826,2]
[366191049,1750105837374,-490.0,0.00015826,2]
[366191050,1750105837383,-672.852027,0.00015826,2]
[366191051,1750105837392,-490.0,0.00015826,2]
[366191053,1750105837401,-490.0,0.00015826,2]
[366191054,1750105837410,-490.0,0.00015826,2]
[366191055,1750105837419,-490.0,0.00015826,2]
[366191056,1750105837427,-490.0,0.00015826,2]
[366191057,1750105837436,-490.0,0.00015826,2]
[366191058,1750105837445,-490.0,0.00015826,2]
[366191059,1750105837454,-490.0,0.00015826,2]
[366191060,1750105837463,-634.0,0.00015826,2]
[366191061,1750105837473,-490.0,0.00015826,2]
[366191062,1750105837482,-490.0,0.00015826,2]
[366191063,1750105837491,-490.0,0.00015826,2]
[366191064,1750105837500,-490.0,0.00015826,2]
[366191065,1750105837509,-490.0,0.00015826,2]
[366191066,1750105837518,-647.51,0.00015826,2]
[366191067,1750105837528,-490.0,0.00015826,2]
[366191068,1750105837539,-490.0,0.00015826,2]
[366191069,1750105837550,-490.0,0.00015826,2]
[366191070,1750105837560,-490.0,0.00015826,2]
[366191071,1750105837570,-490.0,0.00015826,2]
[366191072,1750105837582,-490.0,0.00015826,2]
[366191073,1750105837591,-600.3,0.00015826,2]
[366191074,1750105837600,-490.0,0.00015826,2]
[366191075,1750105837609,-490.0,0.00015826,2]
[366191076,1750105837619,-490.0,0.00015826,2]
[366191077,1750105837628,-490.0,0.00015826,2]
[366191078,1750105837637,-490.0,0.00015826,2]
[366191079,1750105837647,-490.0,0.00015826,2]
[366191080,1750105837656,-490.0,0.00015826,2]
[366191081,1750105837665,-490.0,0.00015826,2]
[366191082,1750105837674,-490.0,0.00015826,2]
[366191083,1750105837683,-490.0,0.00015826,2]
[366191084,1750105837692,-490.0,0.00015826,2]
[366191085,1750105837701,-490.0,0.00015826,2]
[366191086,1750105837711,-490.0,0.00015826,2]
[366191087,1750105837721,-490.0,0.00015826,2]
[366191088,1750105837730,-617.89,0.00015826,2]
[366191089,1750105837739,-490.0,0.00015826,2]
[366191090,1750105837749,-490.0,0.00015826,2]
[366191091,1750105837758,-435.63,0.00015826,2]
[366191092,1750105837767,-490.0,0.00015826,2]
[366191093,1750105837776,-577.18,0.00015826,2]
[366191094,1750105837785,-490.0,0.00015826,2]
[366191095,1750105837795,-781.03,0.00015826,2]
[366191096,1750105837803,-490.0,0.00015826,2]
[366191097,1750105837813,-537.18279909,0.00015826,2]
[366191098,1750105837822,-1936.49,0.00015826,2]
[366191099,1750105837831,-490.0,0.00015826,2]
[366191100,1750105837840,-490.0,0.00015826,2]
[366191101,1750105837849,-627.96,0.00015826,2]
[366191102,1750105837858,-490.0,0.00015826,2]
[366191103,1750105837867,-601.60384048,0.00015826,2]
[366191104,1750105837876,-490.0,0.00015826,2]
[366191105,1750105837886,-490.0,0.00015826,2]
[366191106,1750105837895,-574.07,0.00015826,2]
[366191107,1750105837917,-4320.48,0.00015826,2]
[366191108,1750105837927,-490.0,0.00015826,2]
[366191110,1750105837936,-490.0,0.00015826,2]
[366191112,1750105837946,-490.0,0.00015826,2]
[366191114,1750105837956,-2240.64,0.00015826,2]
[366191116,1750105837965,-662.63,0.00015826,2]
[366191118,1750105837975,-967.04,0.00015826,2]
[366191120,1750105837984,-490.0,0.00015826,2]
[366191122,1750105837993,-306.98274567,0.00015826,2]
[366191124,1750105838003,-532.89,0.00015826,2]
[366191126,1750105838012,-267.52,0.00015826,2]
[366191128,1750105838022,-490.0,0.00015826,2]
[366191130,1750105838031,-647.82,0.00015826,2]
[366191132,1750105838040,-2324.41,0.00015826,2]
[366191134,1750105838049,-927.04,0.00015826,2]
[366191136,1750105838058,-490.0,0.00015826,2]
[366191138,1750105838067,-1026.3,0.00015826,2]
[366191140,1750105838077,-490.0,0.00015826,2]
[366191142,1750105838087,-847.43,0.00015826,2]
[366191144,1750105838096,-1071.14,0.00015826,2]
[366191146,1750105838105,-1681.57,0.00015826,2]
[366191148,1750105838115,-490.0,0.00015826,2]
[366191150,1750105838124,-490.0,0.00015826,2]
[366191152,1750105838134,-2577.05,0.00015826,2]
[366191154,1750105838143,-490.0,0.00015826,2]
[366191156,1750105838152,-1949.94,0.00015826,2]
[366191158,1750105838162,-490.0,0.00015826,2]
[366191160,1750105838171,-490.0,0.00015826,2]
[366191162,1750105838180,-490.0,0.00015826,2]
[366191164,1750105838190,-650.43,0.00015826,2]
[366191166,1750105838199,-490.0,0.00015826,2]
[366191168,1750105838208,-916.18,0.00015826,2]
[366191170,1750105838217,-490.0,0.00015826,2]
[366191172,1750105838226,-490.0,0.00015826,2]
[366191174,1750105838236,-490.0,0.00015826,2]
[366191176,1750105838245,-498.56,0.00015826,2]
[366191178,1750105838255,-656.22,0.00015826,2]
[366191180,1750105838264,-490.0,0.00015826,2]
[366191182,1750105838273,-490.0,0.00015826,2]
[366191183,1750105838282,-2498.33,0.00015826,2]
[366191185,1750105838294,-1637.68,0.00015826,2]
[366191187,1750105838303,-490.0,0.00015826,2]
[366191189,1750105838312,-490.0,0.00015826,2]
[366191191,1750105838322,-490.0,0.00015826,2]
[366191193,1750105838331,-1004.86,0.00015826,2]
[366191195,1750105838341,-490.0,0.00015826,2]
[366191198,1750105838357,-896.18,0.00015826,2]
[366191200,1750105838367,-1707.89,0.00015826,2]
[366191202,1750105838377,-490.0,0.00015826,2]
[366191204,1750105838387,-490.0,0.00015826,2]
[366191206,1750105838399,-490.0,0.00015826,2]
[366191208,1750105838409,-490.0,0.00015826,2]
[366191210,1750105838419,-5170.04,0.00015826,2]
[366191212,1750105838428,-490.0,0.00015826,2]
[366191214,1750105838437,-1000.0,0.00015826,2]
[366191216,1750105838447,-2023.03,0.00015826,2]
[366191218,1750105838456,-490.0,0.00015826,2]
[366191220,1750105838465,-1345.89,0.00015826,2]